bitfinex-derivatives/quotes_ETHF0:USTF0_20250923
["timestamp","ask_amount","ask_price","bid_price","bid_amount"]
[1758655528544,1.40941,4170.6,4170.5,1.16072]
[1758655529338,1.91248268,4170.6,4170.5,1.16072]
[1758655530155,1.91248268,4170.6,4170.5,0.7293]
[1758655531348,1.16345,4170.3,4170.2,0.93935]
[1758655531646,4.61725,4170.3,4170.2,0.93935]
[1758655532047,4.61725,4170.3,4170.2,1.16075]
[1758655532748,4.1858,4170.3,4170.2,1.16075]
[1758655532948,3.6202,4170.3,4170.2,1.16075]
[1758655533249,3.6579,4170.3,4170.2,1.16075]
[1758655533745,3.5274,4170.8,4170.5,0.3356]
[1758655533951,3.7315,4170.8,4170.7,1.1607]
[1758655534142,3.4119,4170.8,4170.7,1.1607]
[1758655534343,3.2078,4170.8,4170.7,1.1607]
[1758655534537,3.4538,4170.8,4170.7,1.1607]
[1758655535549,0.246,4170.8,4170.7,1.1607]
[1758655536448,0.2041,4171.2,4171.1,1.16066]
[1758655536748,3.2078,4171.3,4171.2,1.16065]
[1758655536953,0.246,4171.3,4171.2,1.16065]
[1758655537154,1.16331,4171.7,4171.6,0.85521]
[1758655537354,1.91373383,4171.7,4171.6,1.16061]
[1758655537647,0.70852383,4171.7,4171.6,1.16061]
[1758655537850,1.48242383,4171.7,4171.6,1.16061]
[1758655538154,3.9398,4172.3,4172.2,1.16055]
[1758655538447,4.69008752,4172.3,4172.2,0.85515]
[1758655539250,4.69008752,4172.3,4172.2,0.4239]
[1758655539446,4.69008752,4172.3,4172.2,0.2025]
[1758655540547,4.44408752,4172.3,4172.2,0.7293]
[1758655540752,4.1858,4172.3,4172.2,0.5079]
[1758655542150,1.07812,4172.2,4171.7,0.2214]
[1758655542352,0.4124,4171.4,4171.3,0.43134]
[1758655542551,0.6584,4171.4,4171.3,0.2025]
[1758655542750,0.732,4171.0,4170.9,4.14708]
[1758655542945,1.1054,4171.0,4170.9,3.2078]
[1758655543150,0.2041,4170.5,4170.4,4.36853]
[1758655543945,0.732,4170.5,4170.4,3.9371]
[1758655544154,0.8594,4170.5,4170.4,3.9371]
[1758655544354,0.8594,4170.5,4170.4,3.6317]
[1758655544860,0.8594,4170.5,4170.4,0.2025]
[1758655545854,0.43145,4170.2,4170.1,0.5079]
[1758655546051,0.4124,4169.9,4169.8,3.2078]
[1758655546360,0.4124,4169.9,4169.0,0.3054]
[1758655546361,0.732,4169.4,4169.0,0.3054]
[1758655546550,0.4124,4169.1,4169.0,0.7293]
[1758655546755,0.732,4169.1,4169.0,0.7293]
[1758655547256,0.732,4169.1,4169.0,0.5079]
[1758655547447,0.732,4169.1,4168.6,0.7293]
[1758655547448,0.732,4168.7,4168.6,0.7293]
[1758655547652,0.43164,4168.4,4168.1,0.3054]
[1758655547848,0.978,4168.4,4168.3,0.2025]
[1758655548047,3.2078,4169.1,4168.7,0.7293]
[1758655548261,0.4501,4169.0,4168.9,0.7293]
[1758655548757,0.2041,4169.0,4168.9,0.7293]
[1758655548959,0.732,4169.6,4169.5,0.2025]
[1758655549150,0.978,4169.6,4169.5,0.2025]
[1758655549758,0.732,4169.2,4169.1,0.63407]
[1758655549950,0.978,4169.2,4169.1,1.16087]
[1758655550155,0.978,4169.2,4169.1,0.85547]
[1758655550752,0.978,4169.2,4169.1,1.16087]
[1758655551757,3.4119,4169.5,4169.4,1.16084]
[1758655551957,4.1858,4169.5,4169.4,1.16084]
[1758655552152,4.3132,4169.5,4169.4,0.4239]
[1758655552458,0.8594,4169.0,4168.9,0.43158]
[1758655552751,0.732,4168.9,4168.8,1.16089]
[1758655553153,0.5506,4169.3,4169.2,0.85436]
[1758655553354,0.554,4170.0,4169.9,0.63748]
[1758655553560,1.1345,4170.0,4169.9,0.63748]
[1758655553960,1.1345,4170.0,4169.9,0.206]
[1758655554159,0.7611,4170.0,4169.9,0.4228]
[1758655554363,3.9689,4170.6,4170.5,1.17822]
[1758655554562,4.2149,4170.6,4170.5,0.85422]
[1758655554761,4.2149,4170.6,4170.1,0.75546]
[1758655554961,0.7611,4170.2,4170.1,1.17826]
[1758655555162,1.0071,4170.2,4170.1,1.17826]
[1758655555361,1.0071,4170.2,4170.1,0.7468]
[1758655555560,0.2161,4169.9,4169.8,0.324]
[1758655555866,1.0071,4169.9,4169.8,0.206]
[1758655556267,1.0071,4169.9,4169.8,0.7468]
[1758655556463,3.2078,4170.1,4169.8,0.7468]
[1758655556662,3.9689,4170.1,4170.0,0.53]
[1758655556858,4.2149,4170.1,4170.0,0.206]
[1758655557059,1.0071,4170.1,4170.0,0.206]
[1758655557265,1.0071,4170.1,4170.0,0.7468]
[1758655557966,4.2149,4170.1,4170.0,0.4228]
[1758655558167,1.0071,4170.1,4170.0,0.7468]
[1758655558369,0.7611,4170.1,4170.0,0.7468]
[1758655558556,0.5506,4170.5,4170.4,1.17823]
[1758655558754,0.7966,4170.5,4170.4,1.17823]
[1758655558961,0.7966,4170.5,4170.4,0.7468]
[1758655559167,1.0071,4170.5,4170.4,0.7468]
[1758655560267,1.0071,4170.5,4169.9,0.324]
[1758655560268,0.2161,4170.2,4169.9,0.324]
[1758655560468,0.7611,4170.1,4170.0,0.63747]
[1758655560772,0.4621,4170.1,4170.0,1.30877]
[1758655561067,1.0071,4170.1,4170.0,1.30877]
[1758655561266,1.0071,4170.1,4170.0,1.17827]
[1758655562372,1.43856,4170.1,4170.0,0.7468]
[1758655562673,1.0071,4170.1,4170.0,1.17827]
[1758655562875,1.0071,4170.1,4170.0,1.30877]
[1758655563870,1.19252,4170.5,4170.4,1.17823]
[1758655564070,1.43852,4170.5,4170.4,1.17823]
[1758655564575,0.7611,4170.2,4170.1,0.206]
[1758655564771,1.0071,4170.2,4170.1,0.63746]
[1758655564972,1.0071,4170.2,4170.1,1.17826]
[1758655565669,1.0071,4170.2,4170.1,0.7468]
[1758655565972,1.0071,4170.2,4170.1,0.206]
[1758655566268,0.43147,4170.1,4169.6,1.07878]
[1758655566468,0.7611,4169.8,4169.7,1.1783]
[1758655567072,0.4266,4169.8,4169.7,1.1783]
[1758655568773,0.2161,4169.8,4169.7,1.1783]
[1758655569670,0.43146,4170.1,4170.0,0.43147]
[1758655569976,1.19256,4170.1,4170.0,1.17827]
[1758655570267,0.7611,4170.1,4170.0,1.17827]
[1758655570573,0.246,4170.1,4170.0,0.8773]
[1758655570964,0.246,4170.1,4170.0,1.30877]
[1758655571164,3.5423,4170.6,4170.4,1.17823]
[1758655571165,0.4266,4170.5,4170.4,1.17823]
[1758655571368,1.10402,4170.5,4170.4,1.17823]
[1758655571764,1.42582,4170.5,4170.4,1.17823]
[1758655572166,3.2078,4170.6,4170.5,1.28562]
[1758655572368,3.4226,4171.2,4171.1,0.7315]
[1758655572570,0.4447,4171.5,4171.1,0.7315]
[1758655572571,0.246,4171.3,4171.2,0.43135]
[1758655572764,0.246,4171.3,4171.2,1.16285]
[1758655573066,0.4608,4171.3,4171.2,1.16285]
[1758655573265,1.43524,4171.3,4171.2,0.7315]
[1758655573472,1.43524,4171.3,4171.2,1.16285]
[1758655573972,1.0039,4171.3,4171.2,1.16285]
[1758655574472,0.7579,4171.1,4171.0,0.43136]
[1758655574673,0.7579,4171.1,4171.0,0.64116]
[1758655574869,0.7579,4171.1,4171.0,0.94756]
[1758655575269,0.7579,4171.1,4171.0,0.64117]
[1758655575675,0.4608,4171.1,4171.0,1.28557]
[1758655575873,0.246,4171.1,4171.0,1.28557]
[1758655576068,0.4608,4171.1,4171.0,1.28557]
[1758655576264,1.0039,4171.1,4171.0,0.64117]
[1758655576770,1.0039,4171.1,4171.0,1.28557]
[1758655578572,0.2148,4171.1,4171.0,1.28557]
[1758655578771,0.7579,4171.8,4171.7,0.8564]
[1758655579075,1.0039,4171.8,4171.7,1.1628]
[1758655580077,1.43519,4171.8,4171.7,1.1628]
[1758655580276,1.43519,4171.8,4171.7,0.4313]
[1758655580774,1.43519,4171.8,4171.1,1.07839]
[1758655580775,1.0039,4171.8,4171.1,0.3064]
[1758655580974,0.7579,4171.2,4171.1,0.7315]
[1758655581476,1.18925,4171.2,4171.1,0.2098]
[1758655581674,0.7579,4170.9,4170.8,1.16289]
[1758655581871,0.7579,4170.9,4170.8,0.85649]
[1758655582071,0.7579,4170.9,4170.8,1.16289]
[1758655583781,0.7579,4170.9,4170.8,0.2098]
[1758655583782,1.18928,4170.9,4170.8,0.2098]
[1758655584075,0.7579,4170.9,4170.8,0.64119]
[1758655584280,0.7579,4170.9,4170.8,1.17649]
[1758655584874,0.4361,4170.9,4170.8,1.17649]
[1758655585083,4.3816,4171.7,4171.6,0.414]
[1758655585286,5.13192337,4171.7,4171.6,0.744]
[1758655586576,4.88592337,4171.7,4171.6,0.744]
[1758655586775,5.13192337,4171.7,4171.6,0.744]
[1758655588175,1.92412337,4171.7,4171.6,0.744]
[1758655588377,1.4198,4171.7,4171.6,0.744]
[1758655589584,1.4198,4171.7,4171.6,1.17531]
[1758655590084,1.4198,4171.7,4171.6,0.744]
[1758655590280,0.3153,4172.1,4171.6,0.744]
[1758655590486,1.17378,4171.9,4171.8,0.744]
[1758655591881,0.2056,4171.9,4171.8,1.17529]
[1758655592076,0.246,4171.9,4171.8,1.17529]
[1758655592282,0.9885,4171.9,4171.8,1.17529]
[1758655592788,4.15996,4172.2,4172.1,0.43126]
[1758655593083,4.62756,4172.2,4172.1,0.744]
[1758655593789,4.62756,4172.2,4172.1,1.17526]
[1758655593989,4.62756,4172.2,4172.1,0.744]
[1758655595084,3.881,4172.2,4172.1,1.17526]
[1758655595481,3.4134,4172.2,4172.1,1.17526]
[1758655595675,0.7425,4172.9,4172.8,0.414]
[1758655595877,0.9885,4172.9,4172.8,1.17518]
[1758655596681,0.7425,4172.9,4172.8,1.17518]
[1758655596884,4.38144,4173.2,4173.1,1.17515]
[1758655597077,4.62744,4173.2,4173.1,0.744]
[1758655597378,0.77577,4173.0,4172.9,0.2087]
[1758655597578,1.29667,4173.0,4172.9,0.2087]
[1758655598289,1.54267,4173.0,4172.9,0.2087]
[1758655600476,1.54267,4173.0,4172.9,0.744]
[1758655600780,0.9885,4173.0,4172.9,1.17517]
[1758655601085,1.41966,4173.0,4172.9,0.744]
[1758655601389,1.41966,4173.0,4172.6,0.4312]
[1758655601390,1.1737,4172.6,4172.5,0.2087]
[1758655601581,0.9885,4172.6,4172.5,1.17521]
[1758655601774,0.9885,4172.6,4172.5,0.84521]
[1758655602179,0.9885,4172.6,4172.5,1.17521]
[1758655602489,1.4197,4172.6,4172.5,1.17521]
[1758655603383,1.4197,4172.6,4172.5,0.414]
[1758655603588,1.17376,4172.1,4172.0,0.2087]
[1758655603886,0.7425,4171.7,4171.6,3.8478]
[1758655604396,1.1738,4171.7,4171.6,3.4165]
[1758655604582,0.7425,4171.7,4171.6,3.84781]
[1758655604883,0.7425,4171.3,4171.2,0.2087]
[1758655605087,0.7425,4171.3,4171.2,0.744]
[1758655605088,0.9885,4171.3,4171.2,0.744]
[1758655608791,0.9885,4171.3,4171.2,1.17535]
[1758655609194,1.41984,4171.3,4171.2,1.17535]
[1758655609793,0.9885,4171.3,4171.2,1.17535]
[1758655610087,1.41984,4171.3,4171.2,0.744]
[1758655610681,1.41984,4171.3,4171.2,0.2087]
[1758655612890,0.7425,4170.7,4170.6,4.38321]
[1758655613490,0.4272,4170.7,4170.6,4.38321]
[1758655613695,0.8586,4170.7,4170.6,4.38321]
[1758655613892,1.1913,4170.7,4170.6,4.38321]
[1758655614692,1.1913,4170.7,4170.6,3.6218]
[1758655615197,1.1913,4170.7,4170.6,3.7357]
[1758655615490,1.1913,4170.7,4170.6,3.9425]
[1758655616902,1.1913,4170.7,4170.6,3.6176]
[1758655617198,1.1913,4170.7,4170.6,3.9425]
[1758655617899,1.1913,4170.7,4170.1,3.2078]
[1758655618104,1.32107,4170.0,4169.9,0.5279]
[1758655618289,1.43907,4170.0,4169.9,0.7347]
[1758655618693,1.43907,4170.0,4169.6,3.63931]
[1758655618694,0.4289,4169.7,4169.6,3.7357]
[1758655618893,1.1931,4169.7,4169.6,3.9425]
[1758655619198,1.1931,4169.7,4169.6,4.37401]
[1758655619400,1.1931,4169.7,4169.6,3.9425]
[1758655620001,1.1931,4169.7,4169.6,4.37401]
[1758655620202,0.4289,4169.7,4169.6,4.37401]
[1758655620496,1.1931,4169.7,4169.6,3.9425]
[1758655620900,1.1931,4169.7,4169.6,4.37401]
[1758655621103,1.1931,4169.7,4169.6,3.9425]
[1758655621300,0.5465,4169.7,4169.3,0.3249]
[1758655621492,0.43156,4169.2,4169.1,3.5327]
[1758655621693,1.19316,4169.2,4169.1,0.5279]
[1758655622405,1.1932,4168.9,4168.8,0.5279]
[1758655622593,1.4392,4168.9,4168.8,0.5279]
[1758655623492,1.4392,4168.9,4168.8,0.203]
[1758655623691,1.4392,4168.9,4168.5,0.203]
[1758655623692,1.19322,4168.6,4168.5,0.203]
[1758655624207,1.19322,4168.6,4168.5,0.2022]
[1758655624500,1.19326,4168.2,4168.1,3.9425]
[1758655624889,0.98858,4168.0,4167.9,0.22699319]
[1758655625098,1.32128,4168.0,4167.9,0.22699319]
[1758655625400,1.19328,4168.0,4167.9,0.75869319]
[1758655626096,1.32128,4168.0,4167.9,0.02399319]
[1758655627000,6.32128,4168.0,4167.9,0.02399319]
[1758655628298,1.56728,4168.0,4167.9,0.22699319]
[1758655629791,1.56728,4168.0,4167.9,0.02399319]
[1758655630695,1.56728,4168.0,4167.9,0.45568319]
[1758655630891,1.1356,4168.0,4167.9,0.45568319]
[1758655631601,1.0076,4168.0,4167.9,1.19038319]
[1758655631806,0.4611,4168.0,4167.9,1.19038319]
[1758655632302,0.7452,4168.7,4168.6,1.18362]
[1758655632504,1.42281,4168.7,4168.6,1.18362]
[1758655632801,0.9912,4168.7,4168.6,1.18362]
[1758655633007,0.9912,4168.7,4168.6,0.752]
[1758655633602,1.42281,4168.7,4168.6,0.752]
[1758655634108,1.17681,4168.7,4168.6,1.18362]
[1758655634309,1.42281,4168.7,4168.6,0.752]
[1758655634610,1.17684,4168.5,4168.4,0.97974]
[1758655634803,0.7452,4168.5,4168.4,0.97974]
[1758655635107,0.7452,4168.5,4168.4,0.5481]
[1758655635310,0.8671,4168.5,4168.3,0.43164]
[1758655635606,0.8671,4168.5,4168.4,0.43164]
[1758655635810,1.1131,4168.5,4168.4,0.65174]
[1758655636308,1.1131,4168.5,4168.4,0.97974]
[1758655637812,1.1131,4168.5,4168.4,0.43164]
[1758655638606,0.43164,4168.4,4168.0,0.328]
[1758655638808,0.3679,4168.5,4168.0,0.97978]
[1758655638809,0.4225,4168.1,4168.0,0.97978]
[1758655639004,0.7452,4168.1,4168.0,0.97978]
[1758655639710,0.7452,4168.1,4167.9,0.02399319]
[1758655639711,0.8671,4168.0,4167.9,0.45568319]
[1758655640412,0.8671,4168.0,4167.9,0.67578319]
[1758655640904,0.8671,4168.0,4167.9,1.00378319]
[1758655642011,0.7452,4168.0,4167.9,1.20768319]
[1758655642311,0.9912,4168.0,4167.9,1.20768319]
[1758655642507,1.54478,4168.0,4167.9,0.67578319]
[1758655642712,1.54478,4168.0,4167.9,0.57209319]
[1758655643414,1.1131,4168.0,4167.9,1.00378319]
[1758655643601,1.1131,4168.0,4167.9,0.02399319]
[1758655643801,0.43171,4167.7,4167.6,3.2078]
[1758655644017,1.18621,4167.7,4167.6,0.64482]
[1758655644311,1.18621,4167.7,4167.6,0.96692]
[1758655644807,0.7545,4167.7,4167.6,0.96692]
[1758655645213,0.7545,4167.7,4167.6,0.5352]
[1758655645415,0.7545,4167.7,4167.6,0.96692]
[1758655645615,0.7545,4167.7,4167.6,1.18132]
[1758655647517,0.7545,4167.7,4167.6,0.96692]
[1758655648220,1.25820827,4167.7,4167.6,0.96692]
[1758655649219,1.68991827,4167.7,4167.6,0.96692]
[1758655649512,0.7545,4167.1,4167.0,4.17478]
[1758655649818,0.7545,4167.1,4167.0,4.38918]
[1758655650315,0.7545,4167.1,4167.0,4.51588]
[1758655650611,40.8,4167.7,4167.6,1.18132]
[1758655650612,0.2018,4167.7,4167.6,1.18132]
[1758655650816,1.16973642,4167.7,4167.6,1.18132]
[1758655651017,1.50473642,4167.7,4167.6,1.18132]
[1758655651712,0.43172,4167.6,4167.0,3.3345]
[1758655652017,0.50423642,4167.5,4167.4,0.43174]
[1758655652214,0.93596642,4167.5,4167.4,0.43174]
[1758655652515,0.50423642,4167.5,4167.4,0.43174]
[1758655652710,0.50474475,4167.6,4167.5,0.43173]
[1758655653118,0.93646475,4167.6,4167.5,0.43173]
[1758655654529,0.43174,4167.5,4167.0,3.2078]
[1758655654710,1.25924475,4167.4,4167.3,0.75385]
[1758655654909,0.335,4167.2,4167.0,3.5299]
[1758655655212,1.43227,4167.1,4167.0,3.743]
[1758655655415,1.93717667,4167.1,4167.0,4.17478]
[1758655655622,1.50540667,4167.1,4167.0,3.63958]
[1758655655819,1.50540667,4167.1,4167.0,0.43178]
[1758655656217,1.50540667,4167.1,4167.0,0.64488]
[1758655657115,0.335,4166.7,4166.5,0.43183]
[1758655657311,0.7545,4166.1,4166.0,4.19759]
[1758655657921,0.7545,4166.1,4166.0,4.51969]
[1758655658417,0.7545,4166.1,4166.0,3.63969]
[1758655658619,0.2177,4166.5,4166.4,0.2144]
[1758655658817,1.3030925,4166.5,4166.4,1.18144]
[1758655659117,1.5048925,4166.5,4166.4,1.18144]
[1758655659823,0.9238925,4166.5,4166.4,1.18144]
[1758655660014,1.1698925,4166.5,4166.4,1.18144]
[1758655660817,0.5043925,4166.5,4166.4,1.18144]
[1758655661017,0.246,4166.5,4166.4,1.18144]
[1758655661516,0.4637,4166.5,4166.4,1.18144]
[1758655661721,0.7987,4166.5,4166.4,1.18144]
[1758655662119,1.0005,4166.5,4166.4,1.18144]
[1758655662315,1.1287,4166.5,4166.4,0.85934]
[1758655662522,1.1287,4166.5,4166.4,1.18144]
[1758655662715,1.0005,4166.5,4166.4,1.18144]
[1758655662916,0.4637,4166.5,4166.4,1.18144]
[1758655663111,0.2177,4166.9,4166.8,0.4318]
[1758655663320,0.72119773,4167.1,4167.0,1.09498]
[1758655663517,1.50397414,4167.1,4167.0,0.7496]
[1758655663723,0.7545,4166.7,4166.6,0.7496]
[1758655663924,0.55998,4167.0,4166.8,0.43179]
[1758655664219,1.0005,4166.9,4166.8,0.43179]
[1758655664420,0.7545,4166.9,4166.8,0.4275]
[1758655664616,1.0005,4166.9,4166.8,0.7496]
[1758655665018,0.5527,4167.1,4167.0,0.1267]
[1758655665322,0.246,4167.1,4167.0,0.8763]
[1758655665519,0.7545,4167.5,4167.4,0.85924]
[1758655665824,0.4637,4167.5,4167.4,1.18134]
[1758655666126,1.0005,4167.5,4167.4,1.18134]
[1758655666326,0.4637,4167.5,4167.4,1.18134]
[1758655666822,3.2078,4167.7,4167.6,0.43172]
[1758655667026,3.95765836,4167.7,4167.6,1.18132]
[1758655667330,3.4538,4167.7,4167.6,1.18132]
[1758655668024,3.2078,4167.7,4167.6,1.18132]
[1758655668322,3.4538,4167.7,4167.6,1.18132]
[1758655668627,4.2083,4167.7,4167.6,1.18132]
[1758655675128,0.4637,4167.7,4167.6,1.18132]
[1758655675328,0.5443,4168.0,4167.9,0.85559]
[1758655675530,0.7903,4168.0,4167.9,1.15789]
[1758655676128,0.5443,4168.0,4167.9,1.15789]
[1758655676331,0.2146,4168.0,4167.9,1.15789]
[1758655676533,0.246,4168.0,4167.9,1.15789]
[1758655676729,0.7903,4168.0,4167.9,1.15789]
[1758655677036,0.4606,4168.0,4167.9,1.15789]
[1758655679734,0.246,4168.1,4168.0,0.43168]
[1758655679932,0.246,4168.1,4168.0,1.28288]
[1758655680332,0.4606,4168.1,4168.0,1.28288]
[1758655680539,0.9924,4168.1,4168.0,1.28288]
[1758655680727,1.42407,4168.1,4168.0,0.7262]
[1758655680927,0.9924,4168.1,4168.0,1.15788]
[1758655683839,1.42407,4168.1,4168.0,1.15788]
[1758655684036,0.9924,4168.1,4168.0,1.15788]
[1758655684532,1.42407,4168.1,4168.0,1.15788]
[1758655685040,0.9924,4168.1,4168.0,1.15788]
[1758655685234,0.9924,4168.1,4168.0,0.63968]
[1758655685538,1.42407,4168.1,4168.0,0.94198]
[1758655686741,1.42407,4168.1,4168.0,0.63968]
[1758655686939,1.42407,4168.1,4168.0,0.43168]
[1758655687144,0.7464,4167.8,4167.7,0.5103]
[1758655687534,1.1781,4167.8,4167.7,0.63971]
[1758655687735,0.7464,4167.8,4167.7,0.43171]
[1758655687930,0.7464,4167.8,4167.7,0.63971]
[1758655688135,1.1781,4167.8,4167.7,0.63971]
[1758655688542,1.1781,4167.8,4167.7,0.43171]
[1758655688843,1.17812,4167.7,4167.6,0.43172]
[1758655689043,0.9924,4167.7,4167.6,0.43172]
[1758655689243,0.9924,4167.7,4167.6,0.63972]
[1758655689440,0.9924,4167.7,4167.6,0.94202]
[1758655689944,0.9924,4167.7,4167.6,1.15792]
[1758655696735,4.28687,4168.6,4168.4,0.65314]
[1758655696736,0.5611,4168.5,4168.4,0.65314]
[1758655696940,1.491975,4168.5,4168.4,1.19354]
[1758655697140,1.246975,4168.5,4168.4,1.19354]
[1758655697342,1.491975,4168.5,4168.4,1.19354]
[1758655698038,0.717975,4168.5,4168.4,1.19354]
[1758655698248,3.6364,4169.2,4169.1,0.4398]
[1758655698543,4.69999161,4169.2,4169.1,0.7619]
[1758655698744,4.69999161,4169.2,4169.1,1.19347]
[1758655700136,5.13155161,4169.2,4169.1,1.19347]
[1758655700339,4.45499161,4169.2,4169.1,1.19347]
[1758655700534,4.17099161,4169.2,4169.1,1.19347]
[1758655700743,0.3128,4169.5,4169.4,0.87134]
[1758655700936,3.4202,4169.7,4169.6,1.19341]
[1758655701232,3.6652,4169.7,4169.6,1.19341]
[1758655701839,4.1942,4169.7,4169.6,1.19341]
[1758655702239,0.9864,4169.7,4169.6,1.19341]
[1758655704248,0.7414,4169.7,4169.6,1.19341]
[1758655704551,0.9864,4169.7,4169.6,1.19341]
[1758655704846,0.245,4169.7,4169.6,1.19341]
[1758655705044,0.4672,4169.7,4169.6,1.19341]
[1758655706446,0.7975,4169.7,4169.6,1.19341]
[1758655707347,0.2222,4169.9,4169.8,0.417]
[1758655707546,2.18769887,4170.3,4170.2,0.84845]
[1758655707743,0.4672,4170.3,4170.2,1.15395]
[1758655708637,3.2078,4170.7,4170.6,1.15391]
[1758655708847,3.4528,4170.7,4170.6,1.15391]
[1758655709145,3.9687,4171.2,4171.1,1.15386]
[1758655709542,4.2137,4171.2,4171.1,1.15386]
[1758655710150,4.64505,4171.2,4171.1,1.15386]
[1758655710854,4.2137,4171.2,4171.1,1.15386]
[1758655711045,4.2137,4171.2,4170.5,4.41004]
[1758655711244,0.5525,4170.7,4170.6,0.7225]
[1758655711546,0.2222,4170.7,4170.6,0.7225]
[1758655712239,0.2222,4170.7,4170.6,1.15391]
[1758655712644,0.3303,4171.0,4170.9,0.43138]
[1758655712851,1.19226,4171.1,4171.0,0.94177]
[1758655713450,0.7609,4171.1,4171.0,1.15387]
[1758655714448,0.7609,4171.1,4171.0,1.27757]
[1758655714947,1.19226,4171.1,4171.0,1.27757]
[1758655715452,1.19226,4171.1,4171.0,1.15387]
[1758655718753,1.19231,4170.6,4170.5,3.2078]
[1758655718958,1.43731,4170.6,4170.5,3.7182]
[1758655719153,1.43731,4170.6,4170.1,0.3055]
[1758655719154,0.43143,4170.4,4170.1,0.3055]
[1758655719360,0.43143,4170.4,4170.0,0.1237]
[1758655719361,1.19233,4170.4,4170.3,0.5104]
[1758655719545,1.43733,4170.4,4170.3,0.3055]
[1758655719858,0.7609,4170.1,4170.0,0.94187]
[1758655720157,0.245,4170.1,4170.0,1.27767]
[1758655720555,0.4672,4170.1,4170.0,1.27767]
[1758655720756,1.43736,4170.1,4170.0,0.7225]
[1758655721148,0.65368,4169.9,4169.8,3.4127]
[1758655721360,0.7609,4169.9,4169.8,4.36179]
[1758655721660,1.19238,4169.9,4169.8,4.36179]
[1758655722166,0.7609,4169.9,4169.8,4.36179]
[1758655722661,0.4672,4170.1,4170.0,1.27767]
[1758655723260,0.2222,4170.3,4170.2,0.84845]
[1758655723455,0.245,4170.3,4170.2,1.15395]
[1758655723856,3.8614,4170.7,4170.6,1.15391]
[1758655724056,4.0053,4170.7,4170.6,1.15391]
[1758655724251,3.675,4170.7,4170.6,1.15391]
[1758655725255,3.2078,4170.7,4170.6,1.15391]
[1758655726360,3.9687,4170.7,4170.6,1.15391]
[1758655726759,0.7609,4170.7,4170.6,1.15391]
[1758655729368,0.2222,4170.7,4170.6,1.15391]
[1758655730055,0.7609,4170.7,4170.6,1.15391]
[1758655730261,1.1923,4170.7,4170.6,0.5104]
[1758655730457,1.1923,4170.7,4170.6,0.2049]
[1758655730664,0.4306,4170.4,4170.3,3.7182]
[1758655730858,0.7609,4170.4,4170.3,3.7182]
[1758655731369,0.7609,4170.4,4170.3,4.36174]
[1758655732568,0.4306,4170.4,4170.3,4.36174]
[1758655732768,0.4672,4170.6,4170.5,0.84842]
[1758655732974,0.7975,4170.6,4170.5,1.15392]
[1758655733464,1.43731,4170.6,4170.5,1.15392]
[1758655735568,1.43731,4170.6,4170.5,0.2049]
[1758655735779,1.0059,4170.6,4170.5,0.63632]
[1758655735965,1.0059,4170.6,4170.5,1.17322]
[1758655736366,0.6756,4170.6,4170.5,1.30042]
[1758655737267,0.9832,4170.6,4170.5,1.30042]
[1758655737959,0.9832,4170.6,4170.2,0.3238]
[1758655737960,1.489708,4170.6,4170.2,0.3238]
[1758655738173,0.43145,4170.2,4170.1,3.2078]
[1758655738374,1.17828,4170.1,4170.0,0.43147]
[1758655738575,1.17828,4169.9,4169.8,0.63489]
[1758655739078,0.463,4170.8,4170.7,1.17168]
[1758655739584,0.96951203,4170.8,4170.7,1.17168]
[1758655740483,0.50651203,4170.8,4170.7,1.17168]
[1758655740785,0.245,4170.9,4170.8,1.17167]
[1758655741085,0.463,4170.9,4170.8,1.17167]
[1758655741587,3.5154,4171.2,4171.1,0.43134]
[1758655741788,0.72480684,4171.2,4171.1,1.17164]
[1758655741978,3.647,4171.7,4171.6,0.84778]
[1758655742186,4.70635879,4171.7,4171.6,0.7403]
[1758655742384,0.7468,4171.5,4171.4,0.9585]
[1758655742591,1.02875571,4171.5,4171.4,1.1716]
[1758655742887,0.93915571,4171.5,4171.4,1.1716]
[1758655743083,0.75175879,4171.5,4171.4,1.1716]
[1758655743289,3.2078,4171.7,4171.6,0.43128]
[1758655743585,3.2078,4171.7,4171.6,1.17158]
[1758655744083,0.245,4171.9,4171.6,1.17158]
[1758655744280,0.463,4171.9,4171.8,1.17156]
[1758655744685,0.72448908,4171.9,4171.8,1.17156]
[1758655744888,0.96948908,4171.9,4171.8,1.17156]
[1758655745291,1.19068908,4171.9,4171.8,1.17156]
[1758655745789,1.49828908,4171.9,4171.8,0.7403]
[1758655746186,0.9918,4171.9,4171.8,0.7403]
[1758655747592,0.6842,4171.9,4171.8,0.7403]
[1758655747792,1.11545,4171.9,4171.8,0.7403]
[1758655747987,0.9918,4171.9,4171.8,1.17156]
[1758655748286,0.43123,4172.1,4172.0,0.55843]
[1758655748482,4.38582,4172.2,4172.1,0.5272]
[1758655748682,5.13898183,4172.2,4172.1,0.5272]
[1758655748887,5.13898183,4172.2,4172.1,0.7403]
[1758655749084,7.00756902,4172.2,4172.1,0.7403]
[1758655749686,0.87046,4171.9,4171.8,0.2034]
[1758655749993,1.11546,4171.9,4171.8,1.17156]
[1758655750196,0.6842,4171.9,4171.8,1.17156]
[1758655750694,1.11545,4171.9,4171.8,1.17156]
[1758655750885,0.6842,4171.9,4171.8,1.17156]
[1758655751392,0.6842,4171.9,4171.8,0.5272]
[1758655751393,1.42305,4171.9,4171.8,0.5272]
[1758655751594,1.42305,4171.9,4171.8,0.95846]